[Event "FIDE Open World Rapid 2024"]
[Site "New York"]
[Date "2024.12.27"]
[Round "8.4"]
[White "Sargsyan, Shant"]
[Black "Erigaisi Arjun"]
[Result "0-1"]
[ECO "C01"]
[WhiteElo "2646"]
[BlackElo "2801"]
[Annotator "TA"]
[PlyCount "112"]
[EventDate "2024.12.14"]
[EventType "swiss"]
[EventCountry "USA"]
[SourceTitle "playchess.com"]
[Source "ChessBase"]
[SourceQuality "1"]
[TimeControl "900+10"]

{[%evp 17,112,0,12,10,7,0,0,0,0,0,37,0,0,0,0,0,0,-29,-20,-21,-25,-23,-47,-36,-39,-37,-34,-30,-27,-54,0,0,0,0,13,0,0,0,0,-77,-70,-97,-93,-112,-106,-109,-87,-83,-87,-135,-127,-135,-127,-136,-135,-121,-121,-103,-106,-161,-148,-209,-208,-208,-208,-964,-917,-711,-1048,-1086,-939,-811,-808,-734,-544,-1179,-1179,-2324,-2348,-1550,-1122,-5639,-1787,-5422,-2418,-2383,-1797,-5758,-3209,-6094,-6160,-5110,-4815,-6420,-6203,-5065,-2901]} 1. e4 {[%emt 0:00:03]} e6 {[%emt 0:00:02]} 2. d4 {[%emt 0:00:02]} d5 {[%emt 0:00:01]} 3. exd5 {[%emt 0:00:01]} exd5 {[%emt 0:00:02]} 4. Nf3 {[%emt 0:00:01]} Nf6 {[%emt 0:00:11]} 5. Bd3 {[%emt 0:00:04]} c5 {[%emt 0:00:04]} 6. c3 {[%emt 0:00:11]} Bd6 {[%emt 0:00:43]} 7. O-O {[%emt 0:00:44]} O-O {[%emt 0:00:03]} 8. dxc5 {[%emt 0:00:38]} Bxc5 {[%emt 0:00:02]} 9. Nbd2 {[%emt 0:00:14]} Nc6 {[%emt 0:00:03]} 10. Nb3 {[%emt 0:00:02]} Bb6 {[%emt 0:00:02]} 11. h3 {[%emt 0:00:26]} Ne4 {[%emt 0:00:36]} 12. Nbd4 {[%emt 0:00:22] The position is equal.} Qf6 {[%emt 0:00:15]} 13. Be3 {[%emt 0:00:47][%cal Bc1e3,Be3d4,Bd4e5][%mdl 32]} Bc7 {[%emt 0:00:10]} 14. c4 {[%emt 0:01:56]} Nxd4 {[%emt 0:00:37]} 15. Bxd4 {[%emt 0:00:12]} Qg6 {[%emt 0:00:15]} 16. Be5 {[%emt 0:03:42]} Bb6 {[%emt 0:04:55]} (16... Bxh3 $2 17. Nh4 (17. Bxc7 $2 Qxg2#) 17... Qg5 18. Bxc7 $18) 17. cxd5 {[%emt 0:02:02]} Bxh3 {[%emt 0:00:03]} 18. Nh4 {[%emt 0:00:00]} Qg5 {[%emt 0:02:39][%csl LRe5,LRh4] The board is on fire.} 19. Bxe4 {[%emt 0:00:22][%cal Od1d3]} Qxe5 {[%emt 0:00:13]} (19... Qxh4 20. Bf3 $11) 20. Bxh7+ {[%emt 0:00:46] White is weak on the dark squares} Kxh7 {[%emt 0:00:02]} 21. Qd3+ {[%emt 0:00:01]} (21. gxh3 Rad8 (21... Qxb2 22. Qf3 $11) 22. Qd3+ Kg8) 21... g6 {[%emt 0:00:06]} 22. Qxh3 {[%emt 0:00:44]} Kg7 {[%emt 0:00:02][%cal Oa8d8]} 23. Qc3 {[%emt 0:00:55]} Bd4 {[%emt 0:00:51]} (23... Qxc3 $15 24. bxc3 Rac8) 24. Qd2 $11 {[%emt 0:02:19] [#] And now Nf3 would win.} Qe4 {[%emt 0:00:09]} 25. Nf3 {[%emt 0:00:43]} Bf6 {[%emt 0:00:03]} 26. Rfe1 {[%emt 0:00:34]} Qf5 {[%emt 0:00:04]} 27. Re3 {[%emt 0:01:26]} Rh8 {[%emt 0:00:03]} 28. Nh2 {[%emt 0:00:12] [#]} (28. Rd1 $11 {remains equal.}) 28... Rh4 $1 $17 {[%emt 0:04:09] Black has more active pieces. Black converts the advantage convincingly.} 29. Qd3 {[%emt 0:00:09]} Qxd3 {[%emt 0:01:20]} (29... Bxb2 30. Rb1 Qxd3 31. Rxd3 $16) 30. Rxd3 {[%emt 0:00:01]} Rah8 $1 {[%emt 0:00:02]} (30... Bxb2 $6 31. Rb1 Rb4 32. d6 $11) 31. Rh3 {[%emt 0:00:06]} Rxh3 {[%emt 0:00:01]} (31... Bxb2 32. Rb1 Rxh3 33. gxh3 $11) 32. gxh3 {[%emt 0:00:01]} Rxh3 {[%emt 0:00:02][%cal Oh3d3][%mdl 4096] Endgame. KRB-KRN} (32... Bxb2 33. Rb1 Bd4 34. Rxb7 $16) 33. Ng4 {[%emt 0:00:34]} ({Better is} 33. Rd1) 33... Bxb2 {[%emt 0:00:10]} 34. Rb1 {[%emt 0:00:16]} Bd4 {[%emt 0:00:02]} 35. Kg2 {[%emt 0:00:03] Inhibits Rg3+.} Rh5 {[%emt 0:00:01]} 36. d6 {[%emt 0:00:19]} Rd5 {[%emt 0:00:15]} 37. Rxb7 {[%emt 0:00:09]} Rxd6 {[%emt 0:00:01]} 38. Rb4 {[%emt 0:00:11]} (38. a4 $17) 38... Bb6 $19 {[%emt 0:00:11]} 39. a4 {[%emt 0:00:07]} (39. Rb2 $17 {was worth a try.}) 39... Rd4 {[%emt 0:01:12]} 40. Rxd4 {[%emt 0:00:12]} Bxd4 {[%emt 0:00:01] KB-KN} 41. f4 $2 {[%emt 0:00:08]} (41. Kf3) 41... f5 {[%emt 0:00:08] Black is clearly winning.} 42. Nh2 {[%emt 0:00:02]} Kf7 {[%emt 0:00:37]} 43. Nf3 {[%emt 0:00:18]} Bf6 {[%emt 0:00:01]} 44. Kf2 {[%emt 0:00:13]} Ke6 {[%emt 0:00:01] Hoping for ...a5.} 45. Ke3 {[%emt 0:00:04]} Kd5 {[%emt 0:00:02]} 46. Kd3 {[%emt 0:00:14]} Kc5 {[%emt 0:00:04]} 47. a5 {[%emt 0:00:12]} Kb5 {[%emt 0:00:29]} 48. a6 {[%emt 0:00:09]} Kxa6 {[%emt 0:00:01] Strongly threatening ...Kb5.} 49. Kc4 {[%emt 0:00:01]} Kb6 {[%emt 0:00:04]} 50. Ne1 {[%emt 0:00:20]} a5 {[%emt 0:00:13]} (50... Kc6 $142 51. Nf3 Kd6) 51. Nd3 {[%emt 0:00:08]} Kc6 {[%emt 0:00:06]} 52. Nc5 {[%emt 0:00:07]} Be7 {[%emt 0:00:12]} 53. Nb3 {[%emt 0:00:16]} a4 {[%emt 0:00:03]} 54. Nd4+ {[%emt 0:00:03]} Kd7 {[%emt 0:00:30] White must now prevent ...a3.} 55. Nf3 {[%emt 0:00:16]} a3 {[%emt 0:00:05] ( -> ...a2)} 56. Kb3 {[%emt 0:00:10]} Ke6 {[%emt 0:00:01] Weighted Error Value: White=0.59/Black=0.10 (very precise) .  Mistake:       	White=5     	Black=1      Inaccurate:     	White=5     	Black=1      OK:         	White=15    	Black=19     Best:        	White=2     	Black=4      Strong:       	---       	Black=2} 0-1

[Event "FIDE Open World Rapid 2024"]
[Site "New York"]
[Date "2024.12.28"]
[Round "8.4"]
[White "Moroni, Luca Jr"]
[Black "Banh Gia Huy"]
[Result "1-0"]
[ECO "E70"]
[WhiteElo "2550"]
[BlackElo "2422"]
[Annotator "ChessBase"]
[PlyCount "87"]
[EventDate "2024.12.14"]
[EventType "swiss"]
[EventCountry "USA"]
[SourceTitle "playchess.com"]
[Source "ChessBase"]
[SourceQuality "1"]
[TimeControl "900+10"]

1. c4 {[%emt 0:00:20]} Nf6 {[%emt 0:01:14]} 2. Nc3 {[%emt 0:00:02]} g6 {[%emt 0:00:01]} 3. e4 {[%emt 0:00:06]} d6 {[%emt 0:00:01]} 4. d4 {[%emt 0:00:01]} Bg7 {[%emt 0:00:02]} 5. Bd3 {[%emt 0:00:01]} O-O {[%emt 0:00:05]} 6. Nge2 {[%emt 0:00:01]} Nc6 {[%emt 0:00:02]} 7. O-O {[%emt 0:00:09]} Nd7 {[%emt 0:00:16]} 8. Bc2 {[%emt 0:00:02]} e5 {[%emt 0:00:32]} 9. d5 {[%emt 0:00:01]} Nd4 {[%emt 0:00:21]} 10. Nxd4 {[%emt 0:00:01]} exd4 {[%emt 0:00:01]} 11. Ne2 {[%emt 0:00:02]} Ne5 {[%emt 0:00:45]} 12. Nxd4 {[%emt 0:00:06]} Nxc4 {[%emt 0:00:03]} 13. Rb1 {[%emt 0:00:25]} Qf6 {[%emt 0:01:31]} 14. Ne2 {[%emt 0:00:08]} Qe7 {[%emt 0:01:29]} 15. b3 {[%emt 0:00:20]} Nb6 {[%emt 0:00:18]} 16. Be3 {[%emt 0:00:32]} f5 {[%emt 0:00:39]} 17. exf5 {[%emt 0:01:12]} Bxf5 {[%emt 0:00:16]} 18. Bxf5 {[%emt 0:01:07]} Rxf5 {[%emt 0:00:16]} 19. Bxb6 {[%emt 0:00:16]} axb6 {[%emt 0:00:06]} 20. Ng3 {[%emt 0:00:21]} Rff8 {[%emt 0:00:47]} 21. a4 {[%emt 0:01:13]} Be5 {[%emt 0:00:42]} 22. Rc1 {[%emt 0:00:27]} Rf7 {[%emt 0:00:22]} 23. Rc4 {[%emt 0:00:40]} Raf8 {[%emt 0:00:16]} 24. Ne4 {[%emt 0:00:40]} c5 {[%emt 0:03:06]} 25. dxc6 {[%emt 0:02:31]} bxc6 {[%emt 0:00:02]} 26. Rxc6 {[%emt 0:00:25]} Bxh2+ {[%emt 0:00:25]} 27. Kxh2 {[%emt 0:00:02]} Qxe4 {[%emt 0:00:01]} 28. Rc4 {[%emt 0:00:12]} Qe5+ {[%emt 0:00:37]} 29. Kg1 {[%emt 0:00:02]} b5 {[%emt 0:00:26]} 30. Rd4 {[%emt 0:00:26]} bxa4 {[%emt 0:00:18]} 31. bxa4 {[%emt 0:00:01]} Ra8 {[%emt 0:01:34]} 32. Rxd6 {[%emt 0:00:43]} Ra5 {[%emt 0:00:41]} 33. Rd4 {[%emt 0:01:50]} Kg7 {[%emt 0:00:22]} 34. Qd2 {[%emt 0:00:14]} Ra6 {[%emt 0:01:10]} 35. Rd7 {[%emt 0:01:48]} Rxd7 {[%emt 0:00:24]} 36. Qxd7+ {[%emt 0:00:01]} Kh6 {[%emt 0:00:01]} 37. Qd2+ {[%emt 0:00:36]} Qg5 {[%emt 0:00:40]} 38. Qd4 {[%emt 0:02:19]} Qa5 {[%emt 0:00:26]} 39. Ra1 {[%emt 0:00:00]} Ra7 {[%emt 0:00:14]} 40. Ra3 {[%emt 0:00:15]} Qe1+ {[%emt 0:00:36]} 41. Kh2 {[%emt 0:00:01]} Ra5 {[%emt 0:00:00]} 42. Rh3+ {[%emt 0:00:08]} Rh5 {[%emt 0:00:01]} 43. Qe3+ {[%emt 0:00:12]} Qxe3 {[%emt 0:00:01]} 44. fxe3 {[%emt 0:00:02]} 1-0

[Event "FIDE Open World Rapid 2024"]
[Site "New York"]
[Date "2024.12.27"]
[Round "8.5"]
[White "Murzin, Volodar"]
[Black "Giri, Anish"]
[Result "1/2-1/2"]
[ECO "E11"]
[WhiteElo "2664"]
[BlackElo "2733"]
[Annotator "TA"]
[PlyCount "59"]
[EventDate "2024.12.14"]
[EventType "swiss"]
[EventCountry "USA"]
[SourceTitle "playchess.com"]
[Source "ChessBase"]
[SourceQuality "1"]
[TimeControl "900+10"]

{[%evp 14,59,0,6,2,13,12,4,2,6,17,10,12,7,20,21,26,7,27,16,31,0,3,11,14,2,0,-7,0,0,0,0,0,0,0,0,0,-11,-8,-20,-17,-21,0,-22,0,-12,0,0]} 1. d4 {[%emt 0:00:02]} d5 {[%emt 0:00:01]} 2. c4 {[%emt 0:00:02]} e6 {[%emt 0:00:01]} 3. Nf3 {[%emt 0:00:03]} Nf6 {[%emt 0:00:01]} 4. g3 {[%emt 0:00:02]} Bb4+ {[%emt 0:00:02]} 5. Bd2 {[%emt 0:00:02]} Be7 {[%emt 0:00:02]} 6. Bg2 {[%emt 0:00:02]} O-O {[%emt 0:00:01]} 7. O-O {[%emt 0:00:03]} c6 {[%emt 0:00:02]} 8. Bf4 $1 {[%emt 0:00:05]} dxc4 {[%emt 0:00:08]} 9. Ne5 {[%emt 0:00:05]} Nd5 {[%emt 0:00:01]} 10. Nxc4 {[%emt 0:00:03]} Nxf4 {[%emt 0:00:01]} 11. gxf4 {[%emt 0:00:02]} Nd7 {[%emt 0:00:22]} 12. e3 {[%emt 0:00:01]} Nb6 {[%emt 0:00:09]} 13. Nbd2 {[%emt 0:00:02]} Bd7 {[%emt 0:00:04]} (13... Nd5 {keeps more tension.} 14. Qh5 f6 15. Be4 f5) 14. Rc1 {[%emt 0:00:14]} Be8 {[%emt 0:00:13]} 15. Kh1 {[%emt 0:00:12]} Kh8 {[%emt 0:00:39]} 16. Rg1 {[%emt 0:00:04]} Rg8 {[%emt 0:00:05]} 17. Ne4 {[%emt 0:00:20]} Nxc4 {[%emt 0:01:35]} 18. Rxc4 {[%emt 0:00:03]} Rc8 {[%emt 0:00:03]} 19. Rc1 {[%emt 0:00:55]} b6 {[%emt 0:00:20]} 20. Bf3 {[%emt 0:00:51]} f6 {[%emt 0:00:23]} 21. Qb3 {[%emt 0:00:12]} Qd7 {[%emt 0:00:57]} 22. Rgd1 {[%emt 0:00:13]} Bf7 {[%emt 0:00:34]} 23. Qa4 {[%emt 0:00:29]} Rc7 {[%emt 0:00:19]} 24. Rc3 {[%emt 0:00:49]} Rgc8 {[%emt 0:00:12]} 25. Ng3 {[%emt 0:01:17]} g6 {[%emt 0:00:18]} 26. Rdc1 {[%emt 0:00:12][%cal Rf3c6]} Be8 {[%emt 0:00:09]} 27. Qb3 {[%emt 0:01:10]} Bf7 {[%emt 0:00:54]} 28. Qa4 {[%emt 0:00:19][%cal Rf3c6]} Be8 {[%emt 0:00:13]} 29. Qb3 {[%emt 0:00:01]} Bf7 {[%emt 0:00:11]} 30. Qa4 {[%emt 0:00:51]} 1/2-1/2

[Event "FIDE Open World Rapid 2024"]
[Site "New York"]
[Date "2024.12.28"]
[Round "8.5"]
[White "Ghaem Maghami, Ehsan"]
[Black "Chasin, Nico"]
[Result "0-1"]
[ECO "A28"]
[WhiteElo "2434"]
[BlackElo "2417"]
[Annotator "ChessBase"]
[PlyCount "82"]
[EventDate "2024.12.14"]
[EventType "swiss"]
[EventCountry "USA"]
[SourceTitle "playchess.com"]
[Source "ChessBase"]
[SourceQuality "1"]
[TimeControl "900+10"]

1. c4 {[%emt 0:00:23]} Nf6 {[%emt 0:00:13]} 2. Nc3 {[%emt 0:00:01]} e5 {[%emt 0:00:07]} 3. Nf3 {[%emt 0:00:05]} Nc6 {[%emt 0:00:06]} 4. a3 {[%emt 0:00:03]} g6 {[%emt 0:00:15]} 5. g3 {[%emt 0:00:27]} Bg7 {[%emt 0:00:26]} 6. Bg2 {[%emt 0:00:02]} O-O {[%emt 0:00:09]} 7. O-O {[%emt 0:00:02]} Re8 {[%emt 0:00:24]} 8. d3 {[%emt 0:00:33]} h6 {[%emt 0:00:40]} 9. e4 {[%emt 0:00:14]} a5 {[%emt 0:00:23]} 10. h3 {[%emt 0:00:06]} d6 {[%emt 0:00:04]} 11. Be3 {[%emt 0:00:04]} Nd7 {[%emt 0:00:17]} 12. Rb1 {[%emt 0:04:27]} Nc5 {[%emt 0:02:07]} 13. b4 {[%emt 0:00:23]} Ne6 {[%emt 0:00:01]} 14. Qd2 {[%emt 0:00:28]} Kh7 {[%emt 0:00:44]} 15. Ne2 {[%emt 0:01:23]} f5 {[%emt 0:00:21]} 16. b5 {[%emt 0:01:28]} Ne7 {[%emt 0:00:13]} 17. Nh2 {[%emt 0:01:04]} Nd4 {[%emt 0:02:27]} 18. Bxd4 {[%emt 0:00:17]} exd4 {[%emt 0:00:02]} 19. Nf4 {[%emt 0:00:06]} c6 {[%emt 0:00:20]} 20. Rfe1 {[%emt 0:00:48]} Bd7 {[%emt 0:00:17]} 21. bxc6 {[%emt 0:00:56]} bxc6 {[%emt 0:00:22]} 22. Re2 {[%emt 0:00:02]} a4 {[%emt 0:02:00]} 23. Rbe1 {[%emt 0:00:07]} Qb6 {[%emt 0:00:25]} 24. h4 {[%emt 0:00:55]} Qb3 {[%emt 0:00:39]} 25. exf5 {[%emt 0:00:26]} Nxf5 {[%emt 0:00:05]} 26. Be4 {[%emt 0:00:01]} Qxa3 {[%emt 0:00:27]} 27. Nxg6 {[%emt 0:02:28]} Rxe4 {[%emt 0:01:17]} 28. dxe4 {[%emt 0:00:09]} Nxg3 {[%emt 0:00:00]} 29. fxg3 {[%emt 0:00:33]} Kxg6 {[%emt 0:00:02]} 30. Rf2 {[%emt 0:00:37]} Qc3 {[%emt 0:00:58]} 31. Qd1 {[%emt 0:00:23]} a3 {[%emt 0:00:38]} 32. Rc2 {[%emt 0:01:08]} Qb3 {[%emt 0:00:09]} 33. Nf3 {[%emt 0:00:18]} a2 {[%emt 0:00:23]} 34. Nxd4 {[%emt 0:00:09]} Qb6 {[%emt 0:00:50]} 35. c5 {[%emt 0:00:01]} dxc5 {[%emt 0:01:00]} 36. Nf5 {[%emt 0:00:01]} a1=Q {[%emt 0:00:38]} 37. Qg4+ {[%emt 0:00:21]} Kh7 {[%emt 0:00:01]} 38. Rxa1 {[%emt 0:00:01]} Bxa1 {[%emt 0:00:02]} 39. Rd2 {[%emt 0:00:15]} Qb1+ {[%emt 0:00:42]} 40. Rd1 {[%emt 0:00:09]} Bd4+ {[%emt 0:00:01]} 41. Kh1 {[%emt 0:00:24]} Qc2 {[%emt 0:00:17]} 0-1

[Event "FIDE Open World Rapid 2024"]
[Site "New York"]
[Date "2024.12.28"]
[Round "8.6"]
[White "Corrales Jimenez, Fidel"]
[Black "Bai, Adelard"]
[Result "0-1"]
[ECO "B33"]
[WhiteElo "2555"]
[BlackElo "2393"]
[Annotator "ChessBase"]
[PlyCount "118"]
[EventDate "2024.12.14"]
[EventType "swiss"]
[EventCountry "USA"]
[SourceTitle "playchess.com"]
[Source "ChessBase"]
[SourceQuality "1"]
[TimeControl "900+10"]

1. e4 {[%emt 0:00:03]} c5 {[%emt 0:00:18]} 2. Nf3 {[%emt 0:00:02]} Nc6 {[%emt 0:00:01]} 3. d4 {[%emt 0:00:02]} cxd4 {[%emt 0:00:01]} 4. Nxd4 {[%emt 0:00:02]} Qb6 {[%emt 0:00:01]} 5. Nb3 {[%emt 0:00:05]} Nf6 {[%emt 0:00:01]} 6. Nc3 {[%emt 0:00:12]} e6 {[%emt 0:00:01]} 7. a3 {[%emt 0:00:09]} Qc7 {[%emt 0:00:04]} 8. Be2 {[%emt 0:00:13]} a6 {[%emt 0:00:30]} 9. f4 {[%emt 0:00:58]} d6 {[%emt 0:00:08]} 10. g4 {[%emt 0:00:05]} b5 {[%emt 0:02:24]} 11. Bf3 {[%emt 0:01:03]} Bb7 {[%emt 0:00:24]} 12. Qe2 {[%emt 0:00:02]} Be7 {[%emt 0:00:21]} 13. g5 {[%emt 0:00:43]} Nd7 {[%emt 0:00:05]} 14. h4 {[%emt 0:00:02]} Rc8 {[%emt 0:02:18]} 15. Be3 {[%emt 0:00:06]} Nb6 {[%emt 0:00:20]} 16. h5 {[%emt 0:01:58]} Nc4 {[%emt 0:00:08]} 17. Bc1 {[%emt 0:00:02]} O-O {[%emt 0:02:00]} 18. a4 {[%emt 0:00:40]} N4a5 {[%emt 0:00:50]} 19. Be3 {[%emt 0:01:18]} b4 {[%emt 0:00:17]} 20. Nd1 {[%emt 0:00:09]} d5 {[%emt 0:01:17]} 21. exd5 {[%emt 0:02:57]} exd5 {[%emt 0:00:14]} 22. O-O {[%emt 0:00:03]} d4 {[%emt 0:01:08]} 23. Bd2 {[%emt 0:01:59]} d3 {[%emt 0:00:04]} 24. Qxd3 {[%emt 0:00:13]} Rcd8 {[%emt 0:00:25]} 25. Qe3 {[%emt 0:00:31]} Nc4 {[%emt 0:00:41]} 26. Qe1 {[%emt 0:01:52]} Nxd2 {[%emt 0:00:13]} 27. Nxd2 {[%emt 0:00:02]} Qxf4 {[%emt 0:00:41]} 28. Ne4 {[%emt 0:00:02]} Nd4 {[%emt 0:00:22]} 29. Bg2 {[%emt 0:00:06]} Qg4 {[%emt 0:00:18]} 30. Rf2 {[%emt 0:01:03]} Bxg5 {[%emt 0:01:42]} 31. Nxg5 {[%emt 0:00:21]} Qxg5 {[%emt 0:00:23]} 32. Qe3 {[%emt 0:00:02]} Qg4 {[%emt 0:00:11]} 33. Qh3 {[%emt 0:01:33]} Qxh3 {[%emt 0:00:14]} 34. Bxh3 {[%emt 0:00:01]} Nf3+ {[%emt 0:00:38]} 35. Kg2 {[%emt 0:00:01]} Rfe8 {[%emt 0:00:14]} 36. Kg3 {[%emt 0:00:02]} Ng5 {[%emt 0:00:20]} 37. Rf1 {[%emt 0:01:01]} Rd2 {[%emt 0:00:28]} 38. Bf5 {[%emt 0:00:12]} Rg2+ {[%emt 0:00:11]} 39. Kf4 {[%emt 0:00:16]} Ne6+ {[%emt 0:00:55]} 40. Ke5 {[%emt 0:00:18]} Rd2 {[%emt 0:00:18]} 41. Bd3 {[%emt 0:00:45]} Rd8 {[%emt 0:00:27]} 42. Ne3 {[%emt 0:00:05]} Bc8 {[%emt 0:00:18]} 43. Bc4 {[%emt 0:00:35]} Kf8 {[%emt 0:00:13]} 44. h6 {[%emt 0:00:10]} f6+ {[%emt 0:00:05]} 45. Ke4 {[%emt 0:00:02]} Ng5+ {[%emt 0:00:07]} 46. Kf4 {[%emt 0:00:01]} R8d4+ {[%emt 0:00:02]} 47. Kg3 {[%emt 0:00:02]} Ne4+ {[%emt 0:00:02]} 48. Kf3 {[%emt 0:00:01]} gxh6 {[%emt 0:00:15]} 49. Bd3 {[%emt 0:00:13]} Ng5+ {[%emt 0:00:05]} 50. Kg3 {[%emt 0:00:02]} Kg7 {[%emt 0:00:19]} 51. Rf4 {[%emt 0:00:03]} Rxf4 {[%emt 0:00:05]} 52. Kxf4 {[%emt 0:00:01]} Rf2+ {[%emt 0:00:01]} 53. Kg3 {[%emt 0:00:02]} Rf3+ {[%emt 0:00:02]} 54. Kh2 {[%emt 0:00:18]} Rxe3 {[%emt 0:00:03]} 55. a5 {[%emt 0:00:02]} Nf3+ {[%emt 0:00:06]} 56. Kg2 {[%emt 0:00:02]} Ne5 {[%emt 0:00:02]} 57. Kf2 {[%emt 0:00:07]} Rf3+ {[%emt 0:00:05]} 58. Ke2 {[%emt 0:00:01]} Bg4 {[%emt 0:00:03]} 59. Bxa6 {[%emt 0:00:02]} Ra3+ {[%emt 0:00:01]} 0-1

[Event "FIDE Open World Rapid 2024"]
[Site "New York"]
[Date "2024.12.27"]
[Round "8.7"]
[White "Esipenko, Andrey"]
[Black "Caruana, Fabiano"]
[Result "1-0"]
[ECO "B31"]
[WhiteElo "2682"]
[BlackElo "2805"]
[Annotator "TA"]
[PlyCount "73"]
[EventDate "2024.12.14"]
[EventType "swiss"]
[EventCountry "USA"]
[SourceTitle "playchess.com"]
[Source "ChessBase"]
[SourceQuality "1"]
[TimeControl "900+10"]

{[%evp 15,73,5,7,0,-11,-19,35,20,17,27,37,0,0,0,0,0,0,0,0,0,35,39,43,31,49,38,102,97,83,81,78,78,86,70,66,58,80,69,81,57,57,57,162,58,159,133,360,357,357,360,540,529,29989,29990,29993,29986,29996,29992,29998,29999]} 1. e4 {[%emt 0:00:02]} c5 {[%emt 0:00:11]} 2. Nf3 {[%emt 0:00:02]} Nc6 {[%emt 0:00:01]} 3. Bb5 {[%emt 0:00:08]} Nf6 {[%emt 0:00:04]} 4. Nc3 {[%emt 0:00:06]} g6 {[%emt 0:00:08]} 5. O-O {[%emt 0:01:53]} Bg7 {[%emt 0:00:02]} 6. Re1 {[%emt 0:00:08]} O-O {[%emt 0:00:45]} 7. Bxc6 {[%emt 0:00:26]} bxc6 {[%emt 0:00:34]} 8. e5 {[%emt 0:01:11]} Nd5 {[%emt 0:00:06]} 9. Nxd5 {[%emt 0:02:48]} cxd5 {[%emt 0:00:02]} 10. d4 {[%emt 0:00:01]} Qb6 {[%emt 0:04:15]} (10... d6 $11) 11. dxc5 $14 {[%emt 0:00:49] White is slightly better.} Qxc5 {[%emt 0:00:02]} 12. Be3 {[%emt 0:00:19]} Qc6 {[%emt 0:00:22] Black is weak on the dark squares} 13. Qd2 {[%emt 0:00:44]} d6 {[%emt 0:03:03]} 14. Bh6 {[%emt 0:00:46]} dxe5 {[%emt 0:00:02]} 15. Bxg7 {[%emt 0:00:10]} Kxg7 {[%emt 0:00:02]} 16. Rxe5 {[%emt 0:01:21]} e6 {[%emt 0:00:16]} 17. Rae1 {[%emt 0:00:43]} Qc7 {[%emt 0:02:26]} (17... Qb7 $5) 18. Nd4 {[%emt 0:00:24]} Rb8 {[%emt 0:00:43]} 19. b3 {[%emt 0:01:40]} Rb6 {[%emt 0:00:01]} 20. h4 {[%emt 0:00:21][%cal Bh2h4,Bh4h5][%mdl 32]} Qd8 {[%emt 0:01:32]} ({Black should play} 20... h5 $14) 21. h5 $16 {[%emt 0:00:16]} Re8 {[%emt 0:00:22]} 22. f4 {[%emt 0:00:32] White is much more active.} Bd7 {[%emt 0:01:13]} 23. Qf2 {[%emt 0:00:33]} Qf6 {[%emt 0:00:54]} 24. Qg3 {[%emt 0:00:53][%cal Of4f5]} (24. g4 {simplifies} Kg8 25. hxg6 hxg6 26. g5) 24... Rc8 {[%emt 0:00:32]} 25. R1e3 {[%emt 0:00:24]} a5 {[%emt 0:00:21]} 26. a4 {[%emt 0:00:41]} Kf8 {[%emt 0:00:57]} 27. c3 {[%emt 0:00:18]} Rcb8 {[%emt 0:00:06]} 28. h6 {[%emt 0:00:32]} Kg8 {[%emt 0:00:20] [#]} (28... R6b7 $14) 29. Qf2 {[%emt 0:00:36]} (29. f5 $1 $18 {Black must now prevent fxe6.} Ra8 30. fxe6 Bxe6 31. Qe1) 29... Qd8 {[%emt 0:00:05] [#]} (29... Rf8 $14) 30. f5 $1 {[%emt 0:00:14]} exf5 $2 {[%emt 0:00:03] Black cannot hold the game after this.} (30... Qf8 $16 {was necessary.}) 31. Rxd5 $18 {[%emt 0:00:03]} Qc8 {[%emt 0:00:31]} 32. Qf4 {[%emt 0:00:15][%cal Of4e5] Qe5! is the strong threat.} ({Don't take} 32. Rxa5 Qf8 33. Ra7 Bxa4 34. Rxa4 Qxh6 $18) 32... R6b7 {[%emt 0:00:11]} (32... Be6 $142) 33. Re7 {[%emt 0:00:36][%cal Od5d7] Hoping for Rdxd7!} Be6 {[%emt 0:00:06] [#]} 34. Qe5 {[%emt 0:00:07][%csl Gh6][%cal Re5g7] White mates.} Kf8 {[%emt 0:00:11]} (34... Qf8 35. Rxb7) 35. Nxe6+ {[%emt 0:00:21][%cal Bd4e6,Be6g5,Bg5h7][%mdl 32]} Kxe7 {[%emt 0:00:01]} 36. Ng5+ {[%emt 0:00:06]} Kf8 {[%emt 0:00:01]} 37. Nxh7+ {[%emt 0:00:02] Weighted Error Value: White=0.08 (flawless) /Black=0.48.  Loses game:     	---       	Black=1      Mistake:       	White=1     	Black=5      Inaccurate:     	White=1     	Black=2      OK:         	White=18    	Black=9      Best:        	White=1     	Black=1      Strong:       	White=1     	---} 1-0